bitfinex/quotes_SOLUSD_20240614
["timestamp","ask_amount","ask_price","bid_price","bid_amount"]
[1718402943293,10.3791,142.65,142.62,2.5942]
[1718402943681,10.3791,142.65,142.55,37.2641]
[1718402944009,494.62700005,142.79,142.63,16.1841]
[1718402944010,6.2772,142.75,142.63,16.1841]
[1718402944211,10.3675,142.76,142.7,2.5928]
[1718402944378,10.3675,142.76,142.64,0.17]
[1718402944379,15.5739,142.77,142.64,0.17]
[1718402944712,7.7771,142.73,142.68,2.5931]
[1718402944882,2.5924,142.73,142.68,25.9314]
[1718402945199,2.5923,142.73,142.69,2.593]
[1718402945419,25.9199,142.75,142.7,2.5928]
[1718402945574,25.9199,142.75,142.69,25.9298]
[1718402945575,2.5922,142.74,142.69,25.9298]
[1718402945777,2.5922,142.74,142.64,20.0]
[1718402945778,100.0,142.75,142.64,20.0]
[1718402946000,2.593,142.69,142.63,16.1841]
[1718402946180,25.9216,142.74,142.69,2.5929]
[1718402946383,100.0,142.75,142.64,20.0]
[1718402946613,0.34,142.74,142.65,23.343]
[1718402946902,2.593,142.69,142.64,2.5939]
[1718402947109,2.5932,142.68,142.63,25.9401]
[1718402947475,25.931,142.69,142.64,2.5939]
[1718402947682,7.7794,142.69,142.64,7.7817]
[1718402948297,7.7794,142.69,142.64,2.5939]
[1718402949610,7.7778,142.72,142.62,6.1816]
[1718402949812,7.778,142.71,142.66,7.7803]
[1718402950009,7.778,142.71,142.66,15.5608]
[1718402950010,2.5927,142.71,142.66,15.5608]
[1718402950182,15.556,142.71,142.66,2.5934]
[1718402950383,7.778,142.71,142.66,2.5934]
[1718402950589,2.5928,142.7,142.65,25.9364]
[1718402950813,2.5928,142.7,142.62,6.1816]
[1718402950814,5.1862,142.69,142.63,23.3467]
[1718402950990,23.336,142.7,142.64,23.3448]
[1718402951184,23.336,142.7,142.62,2.5942]
[1718402951185,100.0,142.7,142.62,2.5942]
[1718402951503,6.4184,142.71,142.59,22.5375]
[1718402951504,2.5932,142.68,142.63,12.9704]
[1718402951707,9.1811,142.71,142.66,7.7805]
[1718402951900,5.1848,142.73,142.68,2.5931]
[1718402952079,15.553,142.74,142.69,2.5929]
[1718402952282,2.5923,142.73,142.68,7.7791]
[1718402952595,6.4184,142.75,142.6,121.42]
[1718402952798,15.5517,142.75,142.7,2.5927]
[1718402953010,25.9181,142.76,142.71,2.5926]
[1718402953190,15.5507,142.76,142.71,2.5926]
[1718402953386,2.5918,142.76,142.71,15.5557]
[1718402953585,18.1414,142.77,142.71,5.1852]
[1718402953799,7.7753,142.76,142.71,2.5925]
[1718402954083,2.5918,142.76,142.71,15.5558]
[1718402954286,7.7751,142.77,142.72,2.5924]
[1718402954487,106.4184,142.79,142.68,14.133]
[1718402954691,2.5921,142.74,142.69,15.5578]
[1718402954904,2.5923,142.73,142.68,7.7791]
[1718402955109,23.3291,142.74,142.69,2.5929]
[1718402955110,25.9213,142.74,142.69,2.5929]
[1718402955312,7.7769,142.73,142.68,7.7791]
[1718402955513,7.7769,142.73,142.68,7.7794]
[1718402956013,100.0,142.76,142.67,34.4953]
[1718402956216,0.34,142.75,142.64,6.3534]
[1718402956510,2.5923,142.73,142.68,25.9311]
[1718402956894,23.3295,142.74,142.69,2.5929]
[1718402957118,2.5926,142.71,142.66,2.5934]
[1718402957289,25.9269,142.71,142.66,2.5935]
[1718402957503,7.7772,142.73,142.68,2.5931]
[1718402957702,7.7772,142.73,142.68,7.7794]
[1718402958021,2.5924,142.72,142.68,2.5931]
[1718402958200,2.5924,142.72,142.67,25.9325]
[1718402958516,23.3298,142.74,142.68,23.3385]
[1718402958687,23.3299,142.74,142.68,23.3383]
[1718402958892,2.5923,142.73,142.68,25.9313]
[1718402959114,25.9221,142.74,142.69,2.593]
[1718402959495,2.5924,142.72,142.67,7.7798]
[1718402959694,7.7773,142.72,142.67,7.7798]
[1718402959996,15.5548,142.72,142.67,2.5932]
[1718402960300,7.7787,142.7,142.65,2.5937]
[1718402960497,7.7787,142.7,142.64,23.3445]
[1718402960498,2.5931,142.69,142.64,2.5938]
[1718402960715,7.7792,142.69,142.64,2.5938]
[1718402960918,2.5931,142.69,142.64,7.7816]
[1718402961119,23.3366,142.7,142.64,23.3451]
[1718402961420,25.9295,142.7,142.65,2.5937]
[1718402961594,2.593,142.69,142.64,25.9389]
[1718402961798,2.593,142.69,142.64,2.5938]
[1718402962108,0.17,142.68,142.6,6.3534]
[1718402962503,2.5934,142.67,142.62,15.5653]
[1718402962697,7.7807,142.66,142.61,2.5944]
[1718402962915,23.3444,142.65,142.59,23.3531]
[1718402963127,15.5628,142.65,142.6,2.5946]
[1718402963328,12.9689,142.65,142.59,23.3531]
[1718402963508,2.5937,142.66,142.61,2.5944]
[1718402963821,100.17,142.68,142.62,7.7827]
[1718402963822,2.5934,142.67,142.62,7.7827]
[1718402963996,2.5934,142.67,142.56,6.3534]
[1718402963997,2.594,142.64,142.59,5.1895]
[1718402964203,23.3441,142.65,142.59,23.3529]
[1718402964427,2.5939,142.64,142.59,15.5687]
[1718402964728,23.3455,142.64,142.58,23.3541]
[1718402964931,25.9395,142.64,142.59,2.5948]
[1718402965723,2.5941,142.63,142.58,25.9489]
[1718402965950,0.17,142.66,142.56,6.3534]
[1718402966094,0.17,142.66,142.61,2.5944]
[1718402966095,7.7808,142.66,142.61,2.5944]
[1718402966298,2.5937,142.65,142.6,25.9457]
[1718402966596,7.7812,142.65,142.6,7.7835]
[1718402966796,7.7812,142.65,142.6,2.5945]
[1718402966998,15.5624,142.65,142.6,2.5945]
[1718402967301,0.17,142.67,142.58,18.1646]
[1718402967506,25.9398,142.64,142.59,2.5948]
[1718402967825,2.5941,142.63,142.58,25.9493]
[1718402967999,7.7824,142.63,142.58,7.7848]
[1718402968320,7.7824,142.63,142.58,2.5948]
[1718402968497,7.7821,142.64,142.59,2.5947]
[1718402968697,15.5639,142.64,142.59,2.5947]
[1718402968930,2.594,142.64,142.59,15.5687]
[1718402969109,2.594,142.64,142.59,7.7843]
[1718402969500,23.3459,142.64,142.58,5.1898]
[1718402969718,7.7825,142.63,142.58,2.595]
[1718402970031,2.594,142.64,142.59,7.7843]
[1718402970212,7.7818,142.64,142.59,7.7843]
[1718402970418,7.7818,142.64,142.59,2.5947]
[1718402970599,23.3445,142.65,142.59,15.5687]
[1718402970795,2.594,142.64,142.59,10.3792]
[1718402971024,18.8339,142.67,142.56,6.3534]
[1718402971202,2.5938,142.65,142.6,15.5676]
[1718402971411,2.5938,142.65,142.6,7.7837]
[1718402971618,7.7818,142.64,142.59,2.5946]
[1718402971838,25.9378,142.65,142.6,2.5946]
[1718402972013,18.1543,142.67,142.56,6.3534]
[1718402972216,2.5936,142.66,142.61,25.9442]
[1718402972424,7.7807,142.66,142.61,2.5943]
[1718402972935,23.3413,142.67,142.61,7.7832]
[1718402973098,7.7798,142.68,142.63,2.594]
[1718402973302,2.5933,142.68,142.63,7.7821]
[1718402973500,23.3381,142.69,142.63,23.3467]
[1718402973734,2.5932,142.68,142.63,7.7821]
[1718402973931,100.0,142.67,142.56,6.3534]
[1718402974132,7.7819,142.64,142.59,2.5947]
[1718402974318,2.5947,142.6,142.55,2.5954]
[1718402974512,19.83,142.66,142.54,16.3424]
[1718402974513,0.17,142.62,142.54,16.3424]
[1718402974821,5.1894,142.6,142.54,34.5124]
[1718402975025,7.7846,142.59,142.54,18.938]
[1718402975329,12.972,142.62,142.56,5.1905]
[1718402975619,12.972,142.62,142.56,7.7857]
[1718402975620,2.5945,142.61,142.56,7.7857]
[1718402975829,25.9439,142.62,142.57,2.5951]
[1718402976013,7.7832,142.62,142.57,2.5951]
[1718402976213,15.5662,142.62,142.57,2.5951]
[1718402976416,2.5944,142.61,142.56,25.9532]
[1718402976619,7.7833,142.61,142.56,7.7857]
[1718402976829,15.5667,142.61,142.56,2.5952]
[1718402977037,7.7833,142.61,142.56,2.5952]
[1718402977333,25.9451,142.61,142.56,2.5953]
[1718402977836,2.5939,142.64,142.59,2.5947]
[1718402978001,23.3473,142.63,142.57,23.3559]
[1718402978207,23.3458,142.64,142.58,7.7849]
[1718402978505,2.5941,142.63,142.59,2.5948]
[1718402978713,2.5941,142.63,142.58,25.9497]
[1718402979424,7.7823,142.63,142.58,25.9497]
[1718402979731,25.9414,142.63,142.58,2.5948]
[1718402980133,2.5942,142.63,142.59,2.5948]
[1718402980317,15.5661,142.62,142.57,7.7855]
[1718402980517,15.5661,142.62,142.56,25.9527]
[1718402980518,7.7834,142.61,142.56,25.9527]
[1718402980921,2.5945,142.61,142.57,2.5951]
[1718402981430,23.3494,142.62,142.57,2.5951]
[1718402981746,0.34,142.65,142.54,16.3424]
[1718402981747,2.5946,142.61,142.54,16.3424]
[1718402981911,15.568,142.6,142.55,7.7863]
[1718402982112,2.5947,142.6,142.56,2.5953]
[1718402982315,23.5178,142.63,142.58,2.595]
[1718402982626,23.5178,142.63,142.57,23.3563]
[1718402982627,2.5943,142.62,142.57,25.9511]
[1718402982831,2.5944,142.61,142.57,2.595]
[1718402983143,25.9432,142.62,142.57,2.595]
[1718402983312,25.9432,142.62,142.57,7.7854]
[1718402983513,7.783,142.62,142.57,15.5709]
[1718402983928,23.3459,142.64,142.59,2.5948]
[1718402984122,25.9398,142.64,142.59,2.5948]
[1718402984328,25.9398,142.64,142.59,7.7844]
[1718402984529,10.3778,142.62,142.54,16.3424]
[1718402984728,2.5945,142.61,142.57,2.5951]
[1718402985043,25.9441,142.62,142.57,7.7854]
[1718402985344,2.5942,142.63,142.59,2.5948]
[1718402985524,2.5945,142.61,142.57,2.5951]
[1718402985732,25.9433,142.62,142.57,7.7855]
[1718402986043,100.17,142.58,142.48,18.1778]
[1718402986242,7.7874,142.54,142.48,23.371]
[1718402986447,2.5958,142.54,142.49,2.5966]
[1718402986742,25.9564,142.55,142.49,23.3696]
[1718402986942,25.9564,142.55,142.5,2.5964]
[1718402986943,7.7869,142.55,142.5,2.5964]
[1718402987437,2.5957,142.54,142.49,7.7897]
[1718402987644,25.9561,142.55,142.49,7.7897]
[1718402987820,25.9561,142.55,142.49,15.5796]
[1718402988357,7.787,142.55,142.5,2.5964]
[1718402988519,7.787,142.55,142.49,25.9661]
[1718402988850,2.5957,142.54,142.49,25.9661]
[1718402989026,2.5957,142.54,142.49,7.7897]
[1718402989341,15.5736,142.55,142.49,25.966]
[1718402989528,15.5736,142.55,142.5,2.5964]
[1718402989838,7.7869,142.55,142.5,2.5964]
[1718402990049,100.17,142.58,142.46,15.5278]
[1718402990344,100.17,142.58,142.49,25.9657]
[1718402990345,25.9557,142.55,142.49,25.9657]
[1718402990546,2.5957,142.54,142.49,2.5966]
[1718402990745,2.5957,142.54,142.48,18.1776]
[1718402990746,2.5959,142.53,142.48,2.5967]
[1718402990920,23.3625,142.54,142.48,7.7902]
[1718402991119,15.5757,142.53,142.47,25.9691]
[1718402991343,7.7879,142.53,142.48,2.5968]
[1718402991551,7.7885,142.52,142.46,18.1249]
[1718402991760,7.7881,142.53,142.48,2.5968]
[1718402991958,2.596,142.53,142.48,7.7904]
[1718402992117,25.9584,142.54,142.48,23.3714]
[1718402992446,2.5959,142.53,142.48,7.7903]
[1718402992647,25.9585,142.54,142.48,15.5808]
[1718402992971,2.5956,142.55,142.5,7.7893]
[1718402993248,2.5956,142.55,142.5,7.7892]
[1718402993541,2.5955,142.55,142.5,15.5786]
[1718402993770,25.9549,142.56,142.5,15.5786]
[1718402993923,23.3594,142.56,142.5,15.5786]
[1718402994119,23.3594,142.56,142.5,7.7892]
[1718402994429,7.7868,142.55,142.5,2.5964]
[1718402994660,2.5956,142.55,142.5,7.7893]
[1718402995235,7.7867,142.55,142.5,2.5964]
[1718402995461,2.5957,142.54,142.49,25.9653]
[1718402995673,23.3602,142.55,142.49,25.966]
[1718402995977,2.5957,142.54,142.49,25.966]
[1718402996763,2.5957,142.54,142.49,7.7895]
[1718402996958,2.5957,142.54,142.49,15.5794]
[1718402997357,7.7868,142.55,142.5,2.5964]
[1718402997565,25.9559,142.55,142.49,25.9659]
[1718402997746,2.5957,142.54,142.49,25.9659]
[1718402997954,25.9559,142.55,142.5,2.5964]
[1718402998370,25.9559,142.55,142.49,25.9659]
[1718402998553,2.5957,142.54,142.49,25.9659]
[1718402999458,15.5745,142.54,142.49,2.5965]
[1718402999661,2.596,142.53,142.48,15.5805]
[1718402999968,25.958,142.54,142.49,2.5966]
[1718403000370,7.7874,142.54,142.49,2.5966]
[1718403000661,2.5959,142.54,142.49,7.7898]
[1718403001368,7.7874,142.54,142.49,7.7898]
[1718403001552,7.788,142.53,142.47,5.1938]
[1718403001756,7.7891,142.51,142.46,23.3193]
[1718403001964,2.5961,142.52,142.47,25.9696]
[1718403002146,25.96,142.53,142.48,2.5968]
[1718403002341,5.192,142.53,142.48,5.1936]
[1718403002545,2.5958,142.54,142.49,2.5965]
[1718403002865,7.7874,142.54,142.49,7.7899]
[1718403003172,7.7874,142.54,142.49,2.5966]
[1718403003371,23.362,142.54,142.48,23.3706]
[1718403003681,2.5959,142.53,142.49,2.5966]
[1718403004055,23.362,142.54,142.49,2.5966]
[1718403004252,100.0,142.58,142.46,15.5278]
[1718403004453,7.7864,142.56,142.51,2.5962]
[1718403004766,2.5955,142.55,142.5,25.9641]
[1718403004966,2.5955,142.55,142.5,7.789]
[1718403005265,18.1672,142.57,142.47,0.34]
[1718403005465,15.5725,142.56,142.51,7.7888]
[1718403005665,2.5955,142.55,142.5,25.9636]
[1718403005867,7.7866,142.55,142.5,15.5782]
[1718403006079,2.5955,142.56,142.51,7.7887]
[1718403006285,7.7863,142.56,142.51,7.7887]
[1718403006972,23.3586,142.56,142.51,7.7888]
[1718403007162,2.5955,142.55,142.51,2.5962]
[1718403007569,23.3575,142.57,142.52,2.596]
[1718403007778,7.7857,142.57,142.52,15.5764]
[1718403007985,2.5952,142.57,142.53,15.2678]
[1718403008158,7.7852,142.58,142.53,23.0555]
[1718403008681,15.5763,142.6,142.53,23.0555]
[1718403008682,15.5763,142.6,142.54,27.5979]
[1718403008855,25.9366,142.66,142.61,2.5944]
[1718403009165,2.5938,142.65,142.61,2.5944]
[1718403009357,7.7813,142.65,142.6,41.2137]
[1718403009560,100.0,142.76,142.61,18.1606]
[1718403009883,5.1869,142.67,142.62,21.9262]
[1718403010172,5.1869,142.67,142.62,6.3607]
[1718403010358,5.1878,142.64,142.6,15.2678]
[1718403010564,2.5939,142.64,142.6,23.0516]
[1718403010780,25.9367,142.66,142.61,7.7833]
[1718403010958,2.5937,142.65,142.61,7.7833]
[1718403011148,25.9367,142.66,142.61,7.7833]
[1718403011356,2.5933,142.68,142.63,23.3462]
[1718403011580,7.7798,142.68,142.63,15.5642]
[1718403011760,7.7798,142.68,142.64,2.5939]
[1718403011965,15.5594,142.68,142.63,25.9403]
[1718403012158,7.7798,142.68,142.63,23.3464]
[1718403012363,7.7798,142.68,142.63,25.9403]
[1718403012666,2.5934,142.67,142.63,2.5939]
[1718403012869,2.5934,142.67,142.63,7.7821]
[1718403013175,25.9322,142.68,142.63,15.5644]
[1718403013485,7.7798,142.68,142.63,25.9408]
[1718403013677,7.7798,142.68,142.63,23.3469]
[1718403013852,7.7798,142.68,142.63,25.9408]
[1718403014264,7.7798,142.68,142.64,2.5939]
[1718403014473,18.1518,142.69,142.65,2.5937]
[1718403014474,20.7449,142.69,142.65,2.5937]
[1718403014687,20.7449,142.69,142.6,15.2678]
[1718403014688,2.593,142.69,142.64,23.3446]
[1718403014861,7.7791,142.69,142.65,2.5937]
[1718403015479,15.5582,142.69,142.64,25.9383]
[1718403015663,2.5932,142.68,142.64,25.9383]
[1718403015859,15.5592,142.68,142.63,25.9401]
[1718403016065,7.7797,142.68,142.63,25.9401]
[1718403016265,7.7797,142.68,142.64,2.5939]
[1718403016781,23.3391,142.68,142.63,18.1583]
[1718403016963,25.9324,142.68,142.63,25.9406]
[1718403017162,25.9324,142.68,142.64,2.5939]
[1718403017573,100.0,142.73,142.6,15.2678]
[1718403017574,5.1875,142.65,142.6,20.4568]
[1718403017773,5.1868,142.67,142.62,5.1883]
[1718403018082,7.7813,142.65,142.6,38.6188]
[1718403018297,2.5939,142.64,142.6,41.2133]
[1718403018483,23.344,142.65,142.6,30.8353]
[1718403018780,25.9379,142.65,142.61,2.5944]
[1718403019091,2.5938,142.65,142.61,7.7833]
[1718403019393,0.17,142.73,142.6,15.2678]
[1718403019573,100.0,142.73,142.63,2.594]
[1718403019764,7.7809,142.66,142.62,2.5942]
[1718403019965,7.7803,142.67,142.63,2.5941]
[1718403020161,7.7798,142.68,142.64,2.5939]
[1718403020373,2.5934,142.67,142.63,7.782]
[1718403020576,2.5934,142.67,142.63,5.188]
[1718403020781,2.5934,142.67,142.63,7.7819]
[1718403021182,25.9327,142.68,142.64,2.5939]
[1718403021366,23.3394,142.68,142.63,25.9405]
[1718403021685,7.7798,142.68,142.64,2.5938]
[1718403022195,15.5594,142.68,142.64,2.5939]
[1718403022399,2.5933,142.68,142.64,15.5635]
[1718403022558,2.5933,142.68,142.6,15.2678]
[1718403022559,18.1495,142.71,142.6,36.3478]
[1718403022764,2.5928,142.7,142.66,25.9345]
[1718403022964,7.7782,142.71,142.66,23.3411]
[1718403023270,2.5925,142.72,142.68,5.1863]
[1718403023472,23.3325,142.72,142.67,2.5933]
[1718403023777,23.3325,142.72,142.67,7.78]
[1718403023778,2.5926,142.71,142.67,7.78]
[1718403024094,2.5925,142.72,142.68,7.7796]
[1718403024265,23.3314,142.73,142.68,15.5592]
[1718403024461,7.7765,142.74,142.69,23.3367]
[1718403024668,7.7765,142.74,142.7,2.5928]
[1718403025280,5.1837,142.76,142.67,15.944]
[1718403025503,7.7755,142.76,142.72,2.5924]
[1718403025787,25.9168,142.77,142.72,15.5546]
[1718403026191,2.5917,142.76,142.72,7.7772]
[1718403026491,2.5917,142.76,142.71,18.1481]
[1718403026492,2.5919,142.75,142.71,7.7776]
[1718403026878,122.6185,142.81,142.68,20.68]
[1718403026879,5.1843,142.74,142.69,7.7787]
[1718403027079,5.1843,142.74,142.67,15.944]
[1718403027080,100.0,142.78,142.67,7.7799]
[1718403027385,15.5563,142.71,142.66,25.935]
[1718403027572,7.7782,142.71,142.67,2.5933]
[1718403027995,2.5928,142.71,142.67,7.78]
[1718403028168,0.17,142.77,142.63,15.944]
[1718403028367,0.17,142.77,142.63,37.024]
[1718403028368,2.5923,142.73,142.63,37.024]
[1718403028578,2.5924,142.72,142.68,7.7793]
[1718403028894,7.7773,142.72,142.68,7.7793]
[1718403029101,7.7773,142.72,142.64,0.68]
[1718403029102,7.7764,142.74,142.64,0.68]
[1718403029306,10.3685,142.74,142.69,25.9291]
[1718403029515,2.5919,142.75,142.7,18.1497]
[1718403029794,7.7758,142.75,142.71,2.5926]
[1718403029994,18.143,142.76,142.64,21.76]
[1718403029995,2.5925,142.72,142.68,18.152]
[1718403030196,2.5923,142.73,142.69,15.5578]
[1718403030374,2.5921,142.74,142.7,7.7783]
[1718403030995,15.5517,142.75,142.7,25.9278]
[1718403031390,23.3276,142.75,142.7,23.3352]
[1718403031589,2.5921,142.74,142.7,7.7782]
[1718403031800,2.5921,142.74,142.69,7.7787]
[1718403031801,2.5923,142.73,142.69,25.9292]
[1718403031974,7.7769,142.73,142.69,2.5929]
[1718403032178,5.1846,142.73,142.67,23.3397]
[1718403032500,25.9215,142.74,142.69,25.9296]
[1718403032673,18.1443,142.75,142.63,137.024]
[1718403032876,7.776,142.75,142.7,12.9639]
[1718403033076,7.776,142.75,142.71,2.5925]
[1718403033485,2.5921,142.74,142.7,7.7782]
[1718403033674,2.5923,142.73,142.69,25.9291]
[1718403033894,7.7765,142.74,142.69,23.3362]
[1718403034080,7.7765,142.74,142.7,2.5928]
[1718403034282,15.5528,142.74,142.7,2.5928]
[1718403034681,2.592,142.75,142.71,2.5926]
[1718403034883,2.592,142.75,142.71,7.7778]
[1718403035096,23.3266,142.76,142.71,7.7778]
[1718403035097,7.7757,142.76,142.72,2.5924]
[1718403035300,23.3248,142.77,142.72,23.3321]
[1718403035503,25.9165,142.77,142.72,15.5544]
[1718403035691,2.5918,142.76,142.72,7.7771]
[1718403036000,15.5507,142.76,142.71,25.9253]
[1718403036181,23.3249,142.77,142.72,23.332]
[1718403036397,2.5917,142.76,142.72,25.9243]
[1718403036584,2.5917,142.76,142.72,2.5923]
[1718403036782,18.1403,142.78,142.72,18.147]
[1718403037011,25.9146,142.78,142.73,15.5535]
[1718403037305,2.5915,142.77,142.73,7.7766]
[1718403037626,2.5915,142.77,142.72,18.1467]
[1718403037627,2.5917,142.76,142.72,2.5923]
[1718403037909,7.7759,142.75,142.71,2.5926]
[1718403038090,2.592,142.75,142.71,2.5926]
[1718403038297,7.7758,142.75,142.71,2.5926]
[1718403038604,15.5517,142.75,142.7,41.5485]
[1718403038820,25.9196,142.75,142.7,31.1773]
[1718403038989,2.592,142.75,142.71,7.7778]
[1718403039386,25.9182,142.76,142.71,15.5557]
[1718403039713,7.7754,142.76,142.71,23.3335]
[1718403039891,7.7754,142.76,142.72,2.5924]
[1718403040095,15.5507,142.76,142.72,2.5924]
[1718403040293,7.7759,142.75,142.7,31.1772]
[1718403040511,2.5921,142.74,142.7,41.5484]
[1718403040815,2.5921,142.74,142.7,41.5485]
[1718403041012,25.9196,142.75,142.7,41.5485]
[1718403041512,23.3267,142.76,142.71,7.7778]
[1718403041711,100.0,142.79,142.7,15.6207]
[1718403041885,5.1836,142.76,142.71,15.5557]
[1718403042089,2.5919,142.75,142.71,7.7776]
[1718403042330,7.7755,142.76,142.71,23.3336]
[1718403042495,15.5516,142.75,142.7,25.9273]
[1718403042886,2.5921,142.74,142.7,7.7782]
[1718403043091,2.5921,142.74,142.7,2.5928]
[1718403043693,2.5921,142.74,142.7,7.7784]
[1718403044601,25.9196,142.75,142.7,15.5568]
[1718403044800,25.9196,142.75,142.71,2.5926]
[1718403045001,7.7759,142.75,142.71,2.5926]
[1718403045728,15.5517,142.75,142.7,25.928]
[1718403046018,15.5498,142.77,142.72,7.7771]
[1718403046229,7.7747,142.77,142.73,2.5922]
[1718403046408,2.5916,142.77,142.73,2.5922]
[1718403046609,7.7747,142.77,142.72,25.9239]
[1718403046920,25.9158,142.77,142.72,25.9239]
[1718403047129,7.7752,142.76,142.72,2.5924]
[1718403047298,2.5917,142.76,142.72,7.7773]
[1718403047493,2.5917,142.76,142.72,25.9241]
[1718403047720,25.9161,142.77,142.73,2.5923]
[1718403047917,2.5914,142.78,142.74,7.7761]
[1718403048106,7.7739,142.79,142.74,23.3285]
[1718403048294,7.7739,142.79,142.75,2.5919]
[1718403048732,7.7739,142.79,142.74,25.9204]
[1718403048733,15.5475,142.79,142.74,25.9204]
[1718403049138,12.9556,142.8,142.75,7.7756]
[1718403049307,2.5912,142.79,142.75,7.7756]
[1718403049612,7.7737,142.79,142.75,2.5918]
[1718403049812,25.9109,142.8,142.75,15.5514]
[1718403050210,2.5912,142.79,142.75,7.7756]
[1718403050640,23.3198,142.8,142.75,15.5514]
[1718403050811,25.9109,142.8,142.75,15.5514]
[1718403051011,7.7718,142.83,142.79,2.5911]
[1718403051212,2.5905,142.83,142.79,2.5911]
[1718403051519,2.5905,142.83,142.78,25.9133]
[1718403051703,6.5314,142.85,142.76,2.5917]
[1718403051909,6.5314,142.85,142.73,22.5277]
[1718403051910,2.591,142.8,142.75,25.918]
[1718403052236,7.7737,142.79,142.74,10.3683]
[1718403052525,106.5314,142.85,142.74,2.592]
[1718403052731,19.98,142.84,142.74,2.592]
[1718403052904,2.5913,142.79,142.74,2.592]
[1718403053103,15.5474,142.79,142.74,2.592]
[1718403053349,5.1823,142.8,142.75,7.7757]
[1718403053508,5.1823,142.8,142.74,7.7763]
[1718403053702,106.7014,142.85,142.76,25.9169]
[1718403053703,2.5908,142.81,142.76,25.9169]
[1718403053919,7.7725,142.81,142.76,7.7749]
[1718403054429,25.9072,142.82,142.73,22.5277]
[1718403054632,2.5906,142.82,142.77,25.9153]
[1718403055208,25.9054,142.83,142.78,2.5913]
[1718403055714,2.5906,142.82,142.78,2.5913]
[1718403055920,25.9054,142.83,142.78,2.5913]
[1718403056325,26.3414,142.85,142.74,0.34]
[1718403056326,2.5904,142.84,142.74,0.34]
[1718403056634,7.771,142.84,142.79,7.7734]
[1718403057135,23.3121,142.85,142.8,2.5909]
[1718403057322,5.18,142.86,142.81,2.5907]
[1718403057504,10.3594,142.87,142.81,5.1816]
[1718403057706,25.8996,142.86,142.81,2.5908]
[1718403058236,2.5901,142.85,142.8,41.0394]
[1718403058919,10.3608,142.85,142.79,2.5911]
[1718403059128,2.5905,142.83,142.78,23.3222]
[1718403059425,23.3139,142.84,142.79,2.5911]
[1718403059613,19.81,142.88,142.8,12.9548]
[1718403059614,2.5901,142.85,142.8,12.9548]
[1718403059812,7.7701,142.86,142.81,2.5907]
[1718403060134,2.59,142.86,142.81,15.5447]
[1718403060637,7.7699,142.86,142.81,7.7722]
[1718403061019,7.7705,142.85,142.8,7.7727]
[1718403061334,15.5409,142.85,142.8,2.5909]
[1718403061653,2.5903,142.84,142.79,7.7731]
[1718403061934,2.5903,142.84,142.78,2.5913]
[1718403061935,7.7715,142.83,142.78,2.5913]
[1718403062117,2.5906,142.82,142.78,2.5913]
[1718403062318,12.9539,142.82,142.76,15.5502]
[1718403062525,7.7722,142.82,142.77,7.7746]
[1718403062823,2.5908,142.81,142.76,23.3254]
[1718403063021,2.5908,142.81,142.77,2.5915]
[1718403063355,19.81,142.88,142.74,20.0]
[1718403063641,10.3602,142.86,142.81,2.5908]
[1718403063937,2.5899,142.87,142.81,5.1814]